[Event "Late-Titled-Tuesday-Blitz-January-23-2024"]
[Site "Chess.com"]
[Date "2024.01.23"]
[Round "2"]
[White "Piotrek1979"]
[Black "pooh2012"]
[Result "1-0"]
[WhiteElo "2399"]
[BlackElo "2552"]
[TimeControl "180+1"]
[EndTime "14:18:32 PST"]
[Termination "Piotrek1979 won by resignation"]

1. c4 {[%clk 0:03:00.9]} 1... e6 {[%clk 0:02:58.7]} 2. Nf3 {[%clk 0:02:59.9]}
2... Nf6 {[%clk 0:02:54.3]} 3. g3 {[%clk 0:03:00.8]} 3... d5 {[%clk 0:02:49.7]}
4. Bg2 {[%clk 0:03:01.7]} 4... Be7 {[%clk 0:02:45.6]} 5. O-O {[%clk 0:02:58.2]}
5... O-O {[%clk 0:02:44.1]} 6. b3 {[%clk 0:02:58.3]} 6... a5 {[%clk 0:02:36.2]}
7. d4 {[%clk 0:02:52.8]} 7... c6 {[%clk 0:02:34.6]} 8. Nc3 {[%clk 0:02:51]} 8...
Na6 {[%clk 0:02:33.2]} 9. Bb2 {[%clk 0:02:49.2]} 9... Nc7 {[%clk 0:02:26.2]} 10.
Qc2 {[%clk 0:02:40.9]} 10... b5 {[%clk 0:02:23.3]} 11. Ne5 {[%clk 0:02:36.7]}
11... Bb7 {[%clk 0:02:20]} 12. c5 {[%clk 0:02:26.1]} 12... Nd7 {[%clk
0:02:14.5]} 13. f4 {[%clk 0:02:23.5]} 13... Nxe5 {[%clk 0:02:08.2]} 14. fxe5
{[%clk 0:02:24.4]} 14... f6 {[%clk 0:02:05.4]} 15. exf6 {[%clk 0:02:18.1]} 15...
Bxf6 {[%clk 0:02:04]} 16. e3 {[%clk 0:02:08.4]} 16... Qe7 {[%clk 0:01:46.4]} 17.
Ne2 {[%clk 0:01:46.5]} 17... e5 {[%clk 0:01:35.4]} 18. dxe5 {[%clk 0:01:45.7]}
18... Bxe5 {[%clk 0:01:33.7]} 19. Nd4 {[%clk 0:01:46.3]} 19... g6 {[%clk
0:01:27.7]} 20. Bh3 {[%clk 0:01:27.7]} 20... Rae8 {[%clk 0:01:15.3]} 21. Qd2
{[%clk 0:01:07.4]} 21... a4 {[%clk 0:01:10.3]} 22. Rxf8+ {[%clk 0:01:02.6]}
22... Rxf8 {[%clk 0:01:05.6]} 23. bxa4 {[%clk 0:00:53]} 23... bxa4 {[%clk
0:00:54]} 24. Bc3 {[%clk 0:00:46.4]} 24... Na6 {[%clk 0:00:48]} 25. Ne6 {[%clk
0:00:41.7]} 25... Bxc3 {[%clk 0:00:41.3]} 26. Qxc3 {[%clk 0:00:42.6]} 26... Rf6
{[%clk 0:00:40.2]} 27. Rb1 {[%clk 0:00:43.1]} 27... Bc8 {[%clk 0:00:35.7]} 28.
Nf4 {[%clk 0:00:03.5]} 28... Bxh3 {[%clk 0:00:35.2]} 29. Nxh3 {[%clk 0:00:04.4]}
29... Nxc5 {[%clk 0:00:35.5]} 30. Rb8+ {[%clk 0:00:03.5]} 30... Kg7 {[%clk
0:00:34.9]} 31. Nf4 {[%clk 0:00:04.1]} 31... Qa7 {[%clk 0:00:24.4]} 32. Rg8+
{[%clk 0:00:01.2]} 32... Kxg8 {[%clk 0:00:23.1]} 33. Qxf6 {[%clk 0:00:02.1]}
33... Ne4 {[%clk 0:00:20.8]} 34. Qe6+ {[%clk 0:00:02.2]} 34... Kg7 {[%clk
0:00:19.9]} 35. Qxc6 {[%clk 0:00:02.7]} 35... Qxe3+ {[%clk 0:00:19.4]} 36. Kg2
{[%clk 0:00:03.1]} 36... Qf2+ {[%clk 0:00:18.8]} 37. Kh3 {[%clk 0:00:03.8]}
37... Ng5+ {[%clk 0:00:17.9]} 38. Kg4 {[%clk 0:00:04.5]} 38... Kh6 {[%clk
0:00:08.4]} 39. Qc1 {[%clk 0:00:03.1]} 39... Qf3+ {[%clk 0:00:06.9]} 40. Kh4
{[%clk 0:00:03.4]} 40... Qf2 {[%clk 0:00:07.4]} 41. Nh3 {[%clk 0:00:03.1]} 41...
Qf6 {[%clk 0:00:03.1]} 42. Qxg5+ {[%clk 0:00:03.2]} 42... Qxg5+ {[%clk
0:00:03.4]} 43. Nxg5 {[%clk 0:00:04]} 43... d4 {[%clk 0:00:03.9]} 44. Nf3 {[%clk
0:00:03.9]} 44... d3 {[%clk 0:00:04.8]} 45. Kg4 {[%clk 0:00:04.2]} 45... Kg7
{[%clk 0:00:03.9]} 46. a3 {[%clk 0:00:04.1]} 46... Kf6 {[%clk 0:00:04.8]} 47.
Kf4 {[%clk 0:00:04.7]} 47... g5+ {[%clk 0:00:04.9]} 48. Ke4 {[%clk 0:00:05.2]}
48... g4 {[%clk 0:00:05.5]} 49. Nd2 {[%clk 0:00:05.6]} 49... Kg5 {[%clk
0:00:05.3]} 50. Ke5 {[%clk 0:00:05.7]} 50... h5 {[%clk 0:00:06.2]} 51. Ke4
{[%clk 0:00:05.8]} 51... h4 {[%clk 0:00:07.1]} 52. Ke5 {[%clk 0:00:06.2]} 52...
hxg3 {[%clk 0:00:07.5]} 53. hxg3 {[%clk 0:00:06.5]} 53... Kg6 {[%clk 0:00:07.7]}
54. Kf4 {[%clk 0:00:07]} 54... Kf6 {[%clk 0:00:08.6]} 55. Kxg4 {[%clk
0:00:07.2]} 55... Ke5 {[%clk 0:00:09.5]} 56. Kf3 {[%clk 0:00:07.8]} 56... Kd4
{[%clk 0:00:10.4]} 57. Kf2 {[%clk 0:00:07.8]} 57... Kc3 {[%clk 0:00:11]} 58. Ke3
{[%clk 0:00:08.5]} 58... Kc2 {[%clk 0:00:11.5]} 59. Nc4 {[%clk 0:00:08]} 59...
Kb3 {[%clk 0:00:11.7]} 60. Kxd3 {[%clk 0:00:07.4]} 1-0

[Event "Late-Titled-Tuesday-Blitz-January-23-2024"]
[Site "Chess.com"]
[Date "2024.01.23"]
[Round "2"]
[White "Inepton_Fermion"]
[Black "NtcPou"]
[Result "1-0"]
[WhiteElo "2446"]
[BlackElo "2012"]
[TimeControl "180+1"]
[EndTime "14:18:32 PST"]
[Termination "Inepton_Fermion won by checkmate"]

1. e4 {[%clk 0:03:00.9]} 1... c6 {[%clk 0:02:57.4]} 2. c4 {[%clk 0:03:00.4]}
2... d5 {[%clk 0:02:57]} 3. cxd5 {[%clk 0:03:01.3]} 3... cxd5 {[%clk 0:02:57.2]}
4. exd5 {[%clk 0:03:02.2]} 4... Nf6 {[%clk 0:02:56.7]} 5. Nf3 {[%clk 0:03:01]}
5... g6 {[%clk 0:02:56.1]} 6. Nc3 {[%clk 0:02:55.4]} 6... Bg7 {[%clk 0:02:52.3]}
7. Bc4 {[%clk 0:02:54.9]} 7... O-O {[%clk 0:02:50.2]} 8. O-O {[%clk 0:02:54.9]}
8... Nbd7 {[%clk 0:02:49.9]} 9. d4 {[%clk 0:02:53.4]} 9... Nb6 {[%clk
0:02:47.8]} 10. Qb3 {[%clk 0:02:53.4]} 10... Nxc4 {[%clk 0:02:39.9]} 11. Qxc4
{[%clk 0:02:53.4]} 11... b6 {[%clk 0:02:31.9]} 12. Ne5 {[%clk 0:02:22]} 12...
Bb7 {[%clk 0:02:28.1]} 13. Nc6 {[%clk 0:02:20.8]} 13... Qd7 {[%clk 0:02:21]} 14.
Re1 {[%clk 0:02:09.3]} 14... Rfe8 {[%clk 0:02:17.7]} 15. Ne5 {[%clk 0:01:48.2]}
15... Qd8 {[%clk 0:02:13.5]} 16. d6 {[%clk 0:01:44.9]} 16... e6 {[%clk
0:01:53.4]} 17. Qc7 {[%clk 0:01:36]} 17... Qxc7 {[%clk 0:01:43.5]} 18. dxc7
{[%clk 0:01:36.9]} 18... Rac8 {[%clk 0:01:44.1]} 19. Nb5 {[%clk 0:01:36.5]}
19... a6 {[%clk 0:01:43.5]} 20. Nd6 {[%clk 0:01:36.7]} 20... Rxc7 {[%clk
0:01:43.3]} 21. Nxe8 {[%clk 0:01:31.9]} 21... Nxe8 {[%clk 0:01:44.2]} 22. Bf4
{[%clk 0:01:30.5]} 22... Rc2 {[%clk 0:01:40.3]} 23. Rab1 {[%clk 0:00:46]} 23...
h6 {[%clk 0:01:33.2]} 24. Rec1 {[%clk 0:00:44.7]} 24... Re2 {[%clk 0:01:29.9]}
25. Kf1 {[%clk 0:00:39.8]} 25... Re4 {[%clk 0:01:28.7]} 26. Be3 {[%clk
0:00:28.9]} 26... Bxe5 {[%clk 0:01:26.8]} 27. dxe5 {[%clk 0:00:29.8]} 27... Rxe5
{[%clk 0:01:26.8]} 28. Bxb6 {[%clk 0:00:29.2]} 28... Rg5 {[%clk 0:01:20.7]} 29.
f3 {[%clk 0:00:26.6]} 29... a5 {[%clk 0:01:09.5]} 30. Rc5 {[%clk 0:00:24.4]}
30... Kg7 {[%clk 0:00:54.9]} 31. Rxa5 {[%clk 0:00:23]} 31... e5 {[%clk
0:00:50.5]} 32. Be3 {[%clk 0:00:18]} 32... Rf5 {[%clk 0:00:49.5]} 33. Re1 {[%clk
0:00:17.9]} 33... e4 {[%clk 0:00:43.4]} 34. Rxf5 {[%clk 0:00:16.8]} 34... gxf5
{[%clk 0:00:43.3]} 35. fxe4 {[%clk 0:00:17.3]} 35... fxe4 {[%clk 0:00:42.9]} 36.
b4 {[%clk 0:00:17.1]} 36... Nd6 {[%clk 0:00:41.6]} 37. a4 {[%clk 0:00:17.4]}
37... Nc4 {[%clk 0:00:41.5]} 38. Bd4+ {[%clk 0:00:17.4]} 38... Kg6 {[%clk
0:00:41]} 39. b5 {[%clk 0:00:16.2]} 39... Nd2+ {[%clk 0:00:40.8]} 40. Ke2 {[%clk
0:00:14.2]} 40... Nb3 {[%clk 0:00:41.1]} 41. Bc3 {[%clk 0:00:14.7]} 41... Nc5
{[%clk 0:00:40.3]} 42. a5 {[%clk 0:00:13.3]} 42... Nd3 {[%clk 0:00:40.3]} 43. a6
{[%clk 0:00:09.9]} 43... Bd5 {[%clk 0:00:40.1]} 44. Ra1 {[%clk 0:00:08.7]} 44...
Bc4 {[%clk 0:00:38.6]} 45. a7 {[%clk 0:00:07]} 45... Nc5+ {[%clk 0:00:37.4]} 46.
Ke3 {[%clk 0:00:07.2]} 46... Nb3 {[%clk 0:00:37.3]} 47. a8=Q {[%clk 0:00:07.3]}
47... Nxa1 {[%clk 0:00:37.4]} 48. Qxa1 {[%clk 0:00:08.2]} 48... Bd3 {[%clk
0:00:37.5]} 49. Qa5 {[%clk 0:00:09.1]} 49... f5 {[%clk 0:00:35.7]} 50. Qb6+
{[%clk 0:00:10]} 50... Kg5 {[%clk 0:00:35.5]} 51. Qd4 {[%clk 0:00:10.9]} 51...
f4+ {[%clk 0:00:35.1]} 52. Kd2 {[%clk 0:00:11.8]} 52... Kg4 {[%clk 0:00:32.2]}
53. Qxd3 {[%clk 0:00:10.2]} 53... exd3 {[%clk 0:00:32]} 54. Kxd3 {[%clk
0:00:11.1]} 54... f3 {[%clk 0:00:32.1]} 55. gxf3+ {[%clk 0:00:12]} 55... Kxf3
{[%clk 0:00:32.7]} 56. Be5 {[%clk 0:00:12.6]} 56... h5 {[%clk 0:00:32.3]} 57.
Bg3 {[%clk 0:00:13.5]} 57... h4 {[%clk 0:00:32.3]} 58. Bxh4 {[%clk 0:00:13.8]}
58... Kg4 {[%clk 0:00:33.2]} 59. Bg3 {[%clk 0:00:14.7]} 59... Kf3 {[%clk
0:00:33.1]} 60. b6 {[%clk 0:00:15.6]} 60... Kg2 {[%clk 0:00:33.9]} 61. b7 {[%clk
0:00:16.5]} 61... Kh3 {[%clk 0:00:34.7]} 62. b8=Q {[%clk 0:00:17.4]} 62... Kg2
{[%clk 0:00:34.3]} 63. Qf4 {[%clk 0:00:17.2]} 63... Kh3 {[%clk 0:00:34.4]} 64.
Qh4+ {[%clk 0:00:17]} 64... Kg2 {[%clk 0:00:34.5]} 65. Qg4 {[%clk 0:00:17.9]}
65... Kh1 {[%clk 0:00:32.6]} 66. h4 {[%clk 0:00:18.8]} 66... Kg2 {[%clk
0:00:32.2]} 67. h5 {[%clk 0:00:19.7]} 67... Kg1 {[%clk 0:00:32.5]} 68. h6 {[%clk
0:00:20.1]} 68... Kg2 {[%clk 0:00:33.4]} 69. h7 {[%clk 0:00:21]} 69... Kg1
{[%clk 0:00:33]} 70. h8=Q {[%clk 0:00:21.6]} 70... Kg2 {[%clk 0:00:33.1]} 71.
Qh2+ {[%clk 0:00:22]} 71... Kf1 {[%clk 0:00:32.9]} 72. Qf2# {[%clk 0:00:22.9]}
1-0

[Event "Late-Titled-Tuesday-Blitz-January-23-2024"]
[Site "Chess.com"]
[Date "2024.01.23"]
[Round "2"]
[White "Chemim21"]
[Black "The_Straightforward_Rook"]
[Result "1-0"]
[WhiteElo "2242"]
[BlackElo "2474"]
[TimeControl "180+1"]
[EndTime "14:18:38 PST"]
[Termination "Chemim21 won on time"]

1. e4 {[%clk 0:03:00.9]} 1... c6 {[%clk 0:02:58.2]} 2. d4 {[%clk 0:02:59.1]}
2... d5 {[%clk 0:02:58.5]} 3. Nc3 {[%clk 0:02:59.2]} 3... dxe4 {[%clk
0:02:58.3]} 4. Nxe4 {[%clk 0:02:59.1]} 4... Nf6 {[%clk 0:02:59.2]} 5. Nxf6+
{[%clk 0:02:56.4]} 5... exf6 {[%clk 0:03:00.1]} 6. Bc4 {[%clk 0:02:50.6]} 6...
Bd6 {[%clk 0:02:57.7]} 7. Qe2+ {[%clk 0:02:47]} 7... Be7 {[%clk 0:02:58.1]} 8.
Nf3 {[%clk 0:02:42.1]} 8... Bg4 {[%clk 0:02:56.8]} 9. Be3 {[%clk 0:02:41.8]}
9... O-O {[%clk 0:02:51.3]} 10. h3 {[%clk 0:02:41.7]} 10... Bh5 {[%clk
0:02:50.6]} 11. g4 {[%clk 0:02:40.4]} 11... Bg6 {[%clk 0:02:51.2]} 12. h4 {[%clk
0:02:34.9]} 12... b5 {[%clk 0:02:31.1]} 13. Bb3 {[%clk 0:02:30.1]} 13... a5
{[%clk 0:02:29.7]} 14. a4 {[%clk 0:02:27.5]} 14... Re8 {[%clk 0:02:17.8]} 15.
axb5 {[%clk 0:02:20.1]} 15... cxb5 {[%clk 0:02:18.7]} 16. Qxb5 {[%clk
0:02:19.4]} 16... Be4 {[%clk 0:02:10.9]} 17. Qe2 {[%clk 0:02:07.7]} 17... Nc6
{[%clk 0:02:07.6]} 18. c3 {[%clk 0:02:04]} 18... Qb8 {[%clk 0:01:58]} 19. Ba4
{[%clk 0:01:53.4]} 19... Bd6 {[%clk 0:01:41.1]} 20. Rh3 {[%clk 0:01:39.1]} 20...
Re7 {[%clk 0:01:38.2]} 21. Rd1 {[%clk 0:01:28.1]} 21... Bf4 {[%clk 0:01:26.9]}
22. Qb5 {[%clk 0:01:16.6]} 22... Bxe3 {[%clk 0:01:20.2]} 23. fxe3 {[%clk
0:01:03.2]} 23... Rb7 {[%clk 0:01:19.2]} 24. Qc5 {[%clk 0:00:54.6]} 24... Qc8
{[%clk 0:01:07.6]} 25. Bxc6 {[%clk 0:00:47.9]} 25... Bxc6 {[%clk 0:01:01.3]} 26.
Rd2 {[%clk 0:00:46.7]} 26... Rc7 {[%clk 0:00:37.8]} 27. Qd6 {[%clk 0:00:36.7]}
27... Bxf3 {[%clk 0:00:31]} 28. Rxf3 {[%clk 0:00:33.9]} 28... Qxg4 {[%clk
0:00:31.4]} 29. Rdf2 {[%clk 0:00:23.8]} 29... Rd7 {[%clk 0:00:27.2]} 30. Qg3
{[%clk 0:00:20.6]} 30... Qxg3 {[%clk 0:00:23.7]} 31. Rxg3 {[%clk 0:00:20.2]}
31... Kf8 {[%clk 0:00:23.7]} 32. Kd2 {[%clk 0:00:19.2]} 32... Rb7 {[%clk
0:00:21.6]} 33. Kd3 {[%clk 0:00:19.4]} 33... a4 {[%clk 0:00:21.1]} 34. Rgg2
{[%clk 0:00:19.6]} 34... a3 {[%clk 0:00:20.2]} 35. bxa3 {[%clk 0:00:18.7]} 35...
Rxa3 {[%clk 0:00:21.1]} 36. Rb2 {[%clk 0:00:18.3]} 36... Rc7 {[%clk 0:00:20.6]}
37. Rgc2 {[%clk 0:00:17.1]} 37... g6 {[%clk 0:00:20.7]} 38. e4 {[%clk
0:00:14.4]} 38... Ke7 {[%clk 0:00:19.7]} 39. d5 {[%clk 0:00:14.4]} 39... Kd6
{[%clk 0:00:19.6]} 40. Kd4 {[%clk 0:00:14.6]} 40... Ra4+ {[%clk 0:00:19.3]} 41.
c4 {[%clk 0:00:14.9]} 41... Kd7 {[%clk 0:00:18.6]} 42. Rb6 {[%clk 0:00:08]}
42... f5 {[%clk 0:00:15.2]} 43. e5 {[%clk 0:00:07.2]} 43... Rca7 {[%clk
0:00:13.6]} 44. Rf6 {[%clk 0:00:07.8]} 44... Ke8 {[%clk 0:00:13.2]} 45. e6
{[%clk 0:00:06.1]} 45... fxe6 {[%clk 0:00:12.5]} 46. Rxe6+ {[%clk 0:00:06]}
46... Kf7 {[%clk 0:00:12.2]} 47. Rc6 {[%clk 0:00:06.2]} 47... Re7 {[%clk
0:00:11.9]} 48. Kc5 {[%clk 0:00:06.2]} 48... Re4 {[%clk 0:00:07.4]} 49. Kd6
{[%clk 0:00:06.3]} 49... f4 {[%clk 0:00:07.3]} 50. Rc7+ {[%clk 0:00:06.5]} 50...
Kf6 {[%clk 0:00:07.4]} 51. c5 {[%clk 0:00:06.8]} 51... f3 {[%clk 0:00:07.3]} 52.
Kc6 {[%clk 0:00:06.9]} 52... Rf4 {[%clk 0:00:07.7]} 53. Rf2 {[%clk 0:00:06.2]}
53... Rae4 {[%clk 0:00:08.2]} 54. d6 {[%clk 0:00:06.1]} 54... Re2 {[%clk
0:00:08.8]} 55. d7 {[%clk 0:00:05.5]} 55... Ke7 {[%clk 0:00:05.2]} 56. Rc8
{[%clk 0:00:04.2]} 56... Rf6+ {[%clk 0:00:01.4]} 57. Kc7 {[%clk 0:00:04.1]} 1-0

[Event "Late-Titled-Tuesday-Blitz-January-23-2024"]
[Site "Chess.com"]
[Date "2024.01.23"]
[Round "2"]
[White "Oleksandr_Bortnyk"]
[Black "CaspiIsrael"]
[Result "1-0"]
[WhiteElo "3074"]
[BlackElo "2666"]
[TimeControl "180+1"]
[EndTime "14:18:50 PST"]
[Termination "Oleksandr_Bortnyk won by resignation"]

1. e4 {[%clk 0:03:00.9]} 1... e5 {[%clk 0:02:57.8]} 2. Nf3 {[%clk 0:03:00.3]}
2... Nf6 {[%clk 0:02:58.1]} 3. Nxe5 {[%clk 0:02:59.5]} 3... d6 {[%clk
0:02:58.2]} 4. Nf3 {[%clk 0:02:59.7]} 4... Nxe4 {[%clk 0:02:58.7]} 5. Nc3 {[%clk
0:03:00.3]} 5... Nxc3 {[%clk 0:02:58.8]} 6. dxc3 {[%clk 0:03:01.2]} 6... Be7
{[%clk 0:02:59.2]} 7. Be3 {[%clk 0:03:01.3]} 7... O-O {[%clk 0:02:59.3]} 8. Qd2
{[%clk 0:03:01.9]} 8... Nd7 {[%clk 0:02:59.9]} 9. O-O-O {[%clk 0:03:01.8]} 9...
c6 {[%clk 0:03:00.4]} 10. h4 {[%clk 0:03:00.9]} 10... d5 {[%clk 0:02:57.7]} 11.
Bd3 {[%clk 0:03:00.9]} 11... Re8 {[%clk 0:02:57.4]} 12. Ng5 {[%clk 0:02:55.1]}
12... h6 {[%clk 0:02:53.2]} 13. Bh7+ {[%clk 0:02:54.7]} 13... Kf8 {[%clk
0:02:53.1]} 14. Bd3 {[%clk 0:02:52.8]} 14... Bc5 {[%clk 0:02:46.1]} 15. Bf4
{[%clk 0:02:33]} 15... Nf6 {[%clk 0:02:39.9]} 16. Nh7+ {[%clk 0:02:29.2]} 16...
Nxh7 {[%clk 0:02:39.5]} 17. Bxh7 {[%clk 0:02:30.1]} 17... Qf6 {[%clk 0:02:34.2]}
18. Kb1 {[%clk 0:02:23.4]} 18... Bf5 {[%clk 0:02:32.6]} 19. Bxf5 {[%clk
0:01:48.5]} 19... Qxf5 {[%clk 0:02:32.7]} 20. f3 {[%clk 0:01:47.8]} 20... Qf6
{[%clk 0:02:11.5]} 21. g4 {[%clk 0:01:44.8]} 21... Bd6 {[%clk 0:02:11.7]} 22.
Bxd6+ {[%clk 0:01:43.7]} 22... Qxd6 {[%clk 0:02:12.6]} 23. c4 {[%clk 0:01:44.1]}
23... Re5 {[%clk 0:02:02.7]} 24. f4 {[%clk 0:01:07.1]} 24... Re4 {[%clk
0:02:02.6]} 25. cxd5 {[%clk 0:01:07.7]} 25... Qxd5 {[%clk 0:01:44.2]} 26. Qf2
{[%clk 0:00:50.6]} 26... Qc4 {[%clk 0:01:42]} 27. b3 {[%clk 0:00:50.2]} 27...
Rxf4 {[%clk 0:01:18.9]} 28. Qd2 {[%clk 0:00:49.8]} 28... Qb4 {[%clk 0:01:15.6]}
29. Qd7 {[%clk 0:00:46.6]} 29... Re8 {[%clk 0:01:10.8]} 30. g5 {[%clk
0:00:44.9]} 30... Rxh4 {[%clk 0:00:56.8]} 31. a3 {[%clk 0:00:31.4]} 31... Qg4
{[%clk 0:00:49.1]} 32. Qd6+ {[%clk 0:00:23.8]} 32... Kg8 {[%clk 0:00:49.1]} 33.
Rhg1 {[%clk 0:00:22.9]} 33... Qf4 {[%clk 0:00:34.3]} 34. Qd7 {[%clk 0:00:20.8]}
34... Rf8 {[%clk 0:00:34.6]} 35. gxh6 {[%clk 0:00:20.1]} 35... Qxh6 {[%clk
0:00:33.4]} 36. Qxb7 {[%clk 0:00:19.6]} 36... a5 {[%clk 0:00:30.9]} 37. a4
{[%clk 0:00:18]} 37... Rh2 {[%clk 0:00:29.4]} 38. Qb6 {[%clk 0:00:16.2]} 38...
Rh5 {[%clk 0:00:20.1]} 39. Qc7 {[%clk 0:00:12.3]} 39... Kh7 {[%clk 0:00:19.8]}
40. Qe7 {[%clk 0:00:08.1]} 40... Kg8 {[%clk 0:00:20]} 41. Rge1 {[%clk 0:00:08]}
41... g6 {[%clk 0:00:18.3]} 42. Qc7 {[%clk 0:00:05.6]} 42... Rh2 {[%clk
0:00:15.4]} 43. Qxc6 {[%clk 0:00:05.3]} 43... Qh3 {[%clk 0:00:15.6]} 44. Rg1
{[%clk 0:00:04.7]} 44... Rc8 {[%clk 0:00:15.5]} 45. Rxg6+ {[%clk 0:00:02.9]}
45... fxg6 {[%clk 0:00:15.4]} 46. Qxg6+ {[%clk 0:00:03.8]} 46... Kh8 {[%clk
0:00:15.4]} 47. Qf6+ {[%clk 0:00:03.4]} 47... Kh7 {[%clk 0:00:15.5]} 48. Qf7+
{[%clk 0:00:02.7]} 48... Kh8 {[%clk 0:00:15.8]} 49. Qf6+ {[%clk 0:00:03.1]}
49... Kh7 {[%clk 0:00:16]} 50. Qe7+ {[%clk 0:00:03.1]} 50... Kh8 {[%clk
0:00:16.2]} 51. Qe5+ {[%clk 0:00:03.2]} 51... Kh7 {[%clk 0:00:16.3]} 52. Qe4+
{[%clk 0:00:03.5]} 52... Kh6 {[%clk 0:00:16]} 53. Rg1 {[%clk 0:00:03.3]} 53...
Rg2 {[%clk 0:00:03.9]} 54. Qxg2 {[%clk 0:00:03.1]} 54... Qxg2 {[%clk 0:00:04.1]}
55. Rxg2 {[%clk 0:00:04]} 55... Rc5 {[%clk 0:00:04.6]} 56. Kb2 {[%clk
0:00:04.4]} 56... Kh5 {[%clk 0:00:04.7]} 57. c3 {[%clk 0:00:05]} 57... Kh6
{[%clk 0:00:05.1]} 58. b4 {[%clk 0:00:05.6]} 58... Re5 {[%clk 0:00:05]} 59. Kb3
{[%clk 0:00:05.7]} 59... Re1 {[%clk 0:00:05.2]} 60. bxa5 {[%clk 0:00:05.9]}
60... Rb1+ {[%clk 0:00:05.7]} 61. Kc4 {[%clk 0:00:06.6]} 61... Ra1 {[%clk
0:00:06]} 62. Kb4 {[%clk 0:00:07]} 62... Rb1+ {[%clk 0:00:06.6]} 63. Kc5 {[%clk
0:00:07.6]} 63... Ra1 {[%clk 0:00:07.5]} 64. Rg4 {[%clk 0:00:07.8]} 64... Rc1
{[%clk 0:00:07.8]} 65. Rc4 {[%clk 0:00:08]} 65... Kg5 {[%clk 0:00:08.1]} 66. a6
{[%clk 0:00:08.6]} 66... Re1 {[%clk 0:00:07.8]} 67. a7 {[%clk 0:00:09]} 67...
Re8 {[%clk 0:00:08.7]} 68. Kb6 {[%clk 0:00:09.5]} 68... Re6+ {[%clk 0:00:08.9]}
69. Rc6 {[%clk 0:00:09.9]} 1-0

[Event "Late-Titled-Tuesday-Blitz-January-23-2024"]
[Site "Chess.com"]
[Date "2024.01.23"]
[Round "2"]
[White "otrov-11"]
[Black "Viktor_Poddubnyi"]
[Result "0-1"]
[WhiteElo "2487"]
[BlackElo "2265"]
[TimeControl "180+1"]
[EndTime "14:18:51 PST"]
[Termination "Viktor_Poddubnyi won by resignation"]

1. d4 {[%clk 0:03:00.9]} 1... g6 {[%clk 0:03:00.3]} 2. g3 {[%clk 0:02:59.8]}
2... Bg7 {[%clk 0:03:00.4]} 3. Bg2 {[%clk 0:03:00.4]} 3... Nf6 {[%clk
0:03:00.4]} 4. e4 {[%clk 0:03:00.8]} 4... d6 {[%clk 0:03:00.4]} 5. Nc3 {[%clk
0:03:01]} 5... Nbd7 {[%clk 0:03:00.2]} 6. Nge2 {[%clk 0:03:01.2]} 6... c5 {[%clk
0:03:00.4]} 7. h3 {[%clk 0:03:00.6]} 7... cxd4 {[%clk 0:03:00.3]} 8. Nxd4 {[%clk
0:03:00.4]} 8... O-O {[%clk 0:03:00.7]} 9. Be3 {[%clk 0:02:59.9]} 9... a6 {[%clk
0:03:00.7]} 10. Qd2 {[%clk 0:03:00.3]} 10... Qc7 {[%clk 0:03:00.3]} 11. Bh6
{[%clk 0:02:59.1]} 11... Ne5 {[%clk 0:02:50.5]} 12. Bxg7 {[%clk 0:02:58.4]}
12... Kxg7 {[%clk 0:02:41]} 13. O-O {[%clk 0:02:50.3]} 13... Nc4 {[%clk
0:02:31.5]} 14. Qc1 {[%clk 0:02:48.8]} 14... e5 {[%clk 0:02:27.4]} 15. Nde2
{[%clk 0:02:45]} 15... b5 {[%clk 0:02:18.2]} 16. a3 {[%clk 0:02:35.4]} 16... Bb7
{[%clk 0:02:16.4]} 17. Rd1 {[%clk 0:02:29.5]} 17... Rac8 {[%clk 0:02:12]} 18. b3
{[%clk 0:02:14.2]} 18... Nb6 {[%clk 0:02:11.1]} 19. Qb2 {[%clk 0:02:14.8]} 19...
Rfd8 {[%clk 0:02:09]} 20. Rac1 {[%clk 0:02:15.4]} 20... d5 {[%clk 0:01:47.9]}
21. Nxd5 {[%clk 0:02:11.3]} 21... Nbxd5 {[%clk 0:01:45]} 22. exd5 {[%clk
0:02:11.7]} 22... Bxd5 {[%clk 0:01:35.1]} 23. Bxd5 {[%clk 0:02:01.8]} 23... Nxd5
{[%clk 0:01:31.9]} 24. c4 {[%clk 0:02:01.9]} 24... bxc4 {[%clk 0:01:07.7]} 25.
bxc4 {[%clk 0:02:02.8]} 25... Ne7 {[%clk 0:00:57.2]} 26. Re1 {[%clk 0:01:50.2]}
26... Kg8 {[%clk 0:00:52.4]} 27. c5 {[%clk 0:01:43.5]} 27... Nc6 {[%clk
0:00:43]} 28. h4 {[%clk 0:01:33]} 28... h5 {[%clk 0:00:34.3]} 29. Kh2 {[%clk
0:01:19.5]} 29... e4 {[%clk 0:00:17.4]} 30. Nf4 {[%clk 0:01:14.8]} 30... Ne5
{[%clk 0:00:12.9]} 31. Red1 {[%clk 0:00:56.5]} 31... Nd3 {[%clk 0:00:10.6]} 32.
Nxd3 {[%clk 0:00:55.9]} 32... exd3 {[%clk 0:00:11.5]} 33. Qc3 {[%clk 0:00:55.8]}
33... Qd7 {[%clk 0:00:08.8]} 34. Rd2 {[%clk 0:00:50.9]} 34... Rc6 {[%clk
0:00:08.4]} 35. Rcd1 {[%clk 0:00:49.4]} 35... Qe7 {[%clk 0:00:07.8]} 36. Rxd3
{[%clk 0:00:41]} 36... Rxd3 {[%clk 0:00:08.2]} 37. Qxd3 {[%clk 0:00:41.5]} 37...
Rxc5 {[%clk 0:00:08.8]} 38. Qxa6 {[%clk 0:00:41.4]} 38... Rc2 {[%clk 0:00:07]}
39. Qa8+ {[%clk 0:00:38.7]} 39... Kg7 {[%clk 0:00:05.5]} 40. Qf3 {[%clk
0:00:39.4]} 40... Qf6 {[%clk 0:00:04]} 41. Rd3 {[%clk 0:00:39.5]} 41... Rxf2+
{[%clk 0:00:02.8]} 42. Qg2 {[%clk 0:00:35.1]} 42... Rxg2+ {[%clk 0:00:02.4]} 43.
Kxg2 {[%clk 0:00:36]} 43... Qb2+ {[%clk 0:00:02.1]} 44. Kf3 {[%clk 0:00:35.2]}
44... Qc2 {[%clk 0:00:01.9]} 45. Re3 {[%clk 0:00:36.1]} 45... Qc6+ {[%clk
0:00:01.6]} 46. Kf2 {[%clk 0:00:35.9]} 46... f6 {[%clk 0:00:01.7]} 47. Rd3
{[%clk 0:00:36.3]} 47... Qb6+ {[%clk 0:00:01.7]} 48. Re3 {[%clk 0:00:37.2]}
48... Qc5 {[%clk 0:00:01.9]} 49. Kf3 {[%clk 0:00:38.1]} 49... Qd5+ {[%clk
0:00:02.1]} 50. Ke2 {[%clk 0:00:38.1]} 50... g5 {[%clk 0:00:02.6]} 51. Rd3
{[%clk 0:00:39]} 51... Qb5 {[%clk 0:00:02.3]} 52. hxg5 {[%clk 0:00:38.2]} 52...
fxg5 {[%clk 0:00:02.3]} 53. Kd2 {[%clk 0:00:39.1]} 53... Qb2+ {[%clk 0:00:02.2]}
54. Ke3 {[%clk 0:00:39.4]} 54... Qc1+ {[%clk 0:00:02.7]} 55. Ke4 {[%clk
0:00:39.8]} 55... Qe1+ {[%clk 0:00:02.9]} 56. Kf5 {[%clk 0:00:40.2]} 56... Qb1
{[%clk 0:00:01.5]} 57. Ke4 {[%clk 0:00:39.9]} 57... h4 {[%clk 0:00:01.5]} 58.
gxh4 {[%clk 0:00:39.6]} 58... gxh4 {[%clk 0:00:02.4]} 59. Kd4 {[%clk 0:00:40.2]}
59... Qg1+ {[%clk 0:00:02.2]} 60. Ke4 {[%clk 0:00:40.1]} 60... Qg4+ {[%clk
0:00:02.5]} 61. Kd5 {[%clk 0:00:39.5]} 61... h3 {[%clk 0:00:02.6]} 62. Rd4
{[%clk 0:00:39.4]} 62... Qg2+ {[%clk 0:00:02.7]} 63. Kc5 {[%clk 0:00:38.8]}
63... h2 {[%clk 0:00:03.6]} 64. Rd7+ {[%clk 0:00:39.1]} 64... Kf6 {[%clk
0:00:03.7]} 65. Rd6+ {[%clk 0:00:40]} 65... Ke7 {[%clk 0:00:04.1]} 66. Rd3
{[%clk 0:00:36.7]} 66... h1=Q {[%clk 0:00:03]} 67. Re3+ {[%clk 0:00:37.6]} 67...
Kd7 {[%clk 0:00:02.7]} 68. Rd3+ {[%clk 0:00:37.7]} 68... Kc7 {[%clk 0:00:03.1]}
69. a4 {[%clk 0:00:38.5]} 69... Qc6+ {[%clk 0:00:03.3]} 70. Kb4 {[%clk
0:00:38.9]} 70... Qb1+ {[%clk 0:00:03.6]} 71. Rb3 {[%clk 0:00:39.5]} 71... Qb6+
{[%clk 0:00:03.9]} 72. Kc4 {[%clk 0:00:39.4]} 72... Q6xb3+ {[%clk 0:00:04.1]}
73. Kd4 {[%clk 0:00:40.3]} 73... Q1d3+ {[%clk 0:00:04.4]} 0-1